{"text_format":"1","workbook":"xlsx","n_sheets":3,"sheets":["Clearance Remediation Cleanup","Replacement-Displacement only","Validation"],"not_rendered":{"charts":0,"images":2,"macros":1,"external_links":2,"defined_names":55,"comments":2,"pivot_tables":0},"unopened":[],"bounds":{"document_bytes":16777216,"sheet_cells":100000,"rows_first":2000,"rows_last":500,"rows_between":2000,"halvings":0,"cell_chars":16384,"cell_head_chars":4096},"cells_cut":0,"cells_raw":0,"read":"whole","date_system":"1900"}

{"sheet":"Clearance Remediation Cleanup","index":0,"n_rows":263,"n_cols":82,"rows_kept":263,"cut":false,"hidden":false,"merged":[[134,69,135,70],[137,13,138,27],[137,29,138,33],[137,38,138,42],[137,50,138,54],[158,64,158,67],[154,33,154,35],[154,37,154,41],[141,50,142,54],[140,13,143,27],[141,29,142,33],[141,38,142,42],[152,33,152,35],[152,37,152,41],[154,43,154,44],[155,43,155,44],[156,43,156,44],[157,43,157,44],[158,43,158,44],[147,45,148,46],[149,45,149,46],[150,45,150,46],[151,45,151,46],[152,45,152,46],[157,33,157,35],[157,37,157,41],[155,13,155,31],[155,33,155,35],[155,37,155,41],[156,13,156,31],[156,33,156,35],[156,37,156,41],[149,37,149,41],[150,13,150,31],[150,33,150,35],[150,37,150,41],[151,13,151,31],[151,33,151,35],[151,37,151,41],[152,13,152,31],[158,13,158,31],[158,33,158,35],[158,37,158,41],[147,48,147,60],[147,62,147,65],[148,48,148,59],[149,48,149,60],[149,62,149,65],[150,48,150,60],[150,62,150,65],[151,48,151,60],[151,62,151,65],[152,48,152,60],[152,62,152,65],[154,64,154,67],[156,48,156,62],[156,64,156,67],[157,48,157,62],[157,64,157,67],[158,48,158,62],[153,13,153,31],[153,33,153,35],[153,37,153,41],[157,13,157,31],[237,37,237,65],[191,56,193,76],[94,13,96,35],[123,11,123,17],[123,18,123,53],[123,54,123,79],[125,29,125,35],[90,11,92,17],[90,18,92,52],[90,53,92,79],[94,38,96,47],[94,48,97,65],[94,67,97,77],[154,13,154,31],[102,11,104,17],[102,18,104,52],[106,13,107,23],[110,13,111,29],[110,31,111,77],[113,13,113,29],[113,31,120,77],[145,11,145,17],[145,18,145,53],[145,54,145,79],[62,47,63,77],[40,56,40,71],[66,46,66,63],[262,11,263,79],[178,13,178,20],[187,18,189,54],[187,55,189,79],[191,13,193,33],[195,14,198,33],[195,65,198,76],[162,11,164,17],[162,18,164,52],[246,52,248,65],[246,67,248,76],[241,67,241,76],[243,55,243,65],[243,67,243,76],[200,65,200,76],[200,14,200,63],[241,14,241,35],[241,37,241,65],[220,53,220,63],[220,65,220,76],[211,14,214,33],[31,63,31,79],[35,11,35,20],[38,11,38,20],[54,65,54,77],[32,11,32,23],[31,56,31,62],[31,26,31,54],[31,11,31,23],[39,21,40,54],[40,11,40,13],[9,56,11,79],[1,11,3,22],[1,23,3,52],[1,61,3,79],[25,56,27,62],[15,11,20,54],[7,11,14,54],[237,67,237,76],[80,52,81,59],[80,38,81,50],[65,47,65,63],[48,13,48,43],[54,13,54,43],[46,47,46,51],[55,13,56,43],[61,13,61,43],[184,28,185,34],[184,39,185,57],[184,59,185,65],[168,29,168,77],[170,13,170,20],[170,21,170,27],[172,13,172,20],[125,13,125,21],[21,11,28,54],[5,11,5,79],[62,13,63,43],[55,47,56,63],[54,47,54,63],[35,68,35,79],[58,54,59,77],[34,11,34,20],[34,56,34,79],[42,54,44,79],[35,56,35,67],[39,56,39,71],[51,47,51,77],[52,47,53,77],[46,13,46,43],[39,72,39,79],[32,56,32,62],[32,63,32,79],[46,53,46,77],[51,13,51,43],[52,13,53,43],[61,47,61,76],[55,65,56,77],[7,56,8,79],[239,14,239,35],[239,37,239,65],[239,67,239,76],[68,13,69,14],[66,12,66,34],[48,47,48,77],[36,14,36,20],[40,14,40,20],[40,72,40,79],[42,18,44,53],[42,11,44,17],[36,56,37,67],[36,68,37,79],[36,11,36,13],[58,13,59,53],[49,13,50,43],[39,11,39,20],[38,21,38,54],[77,13,77,28],[79,38,79,47],[79,52,79,59],[84,13,84,34],[202,65,202,76],[216,14,216,63],[235,14,235,35],[34,21,34,54],[35,21,36,54],[180,13,180,20],[180,21,180,27],[182,13,182,20],[182,21,182,27],[73,11,75,17],[216,65,216,76],[125,22,125,25],[125,37,125,40],[49,47,50,77],[73,18,75,53],[73,54,75,79],[77,29,77,77],[86,13,86,40],[172,21,172,27],[174,13,174,20],[174,21,174,27],[176,13,176,20],[176,21,176,27],[178,21,178,27],[166,47,166,49],[166,57,166,64],[229,14,229,35],[229,37,229,65],[229,67,229,76],[231,14,231,35],[231,37,231,65],[231,67,231,76],[233,14,233,35],[233,37,233,65],[233,67,233,76],[207,13,209,33],[79,61,79,77],[84,36,84,59],[83,36,83,59],[187,11,189,17],[166,50,166,56],[223,13,225,35],[227,14,227,35],[227,37,227,65],[227,67,227,76],[87,13,87,77],[162,53,164,79],[166,13,166,27],[211,65,214,76],[128,11,130,17],[128,18,130,52],[128,53,130,79],[154,71,155,72],[147,33,147,41],[148,13,148,31],[148,33,148,35],[148,37,148,41],[149,13,149,31],[149,33,149,35],[147,43,148,44],[149,43,149,44],[150,43,150,44],[151,43,151,44],[65,36,65,44],[65,13,65,30],[66,65,66,77],[66,36,66,44],[68,15,69,36],[147,47,148,47],[79,13,79,28],[84,61,84,77],[83,13,83,34],[80,65,81,73],[80,13,81,36],[83,61,83,77],[102,53,104,79],[132,13,132,25],[132,43,132,55],[134,13,135,25],[134,29,135,33],[134,37,135,43],[134,47,135,58],[134,64,135,68],[147,67,148,68],[147,69,148,70],[149,67,149,68],[149,69,149,70],[150,67,150,68],[150,69,150,70],[151,67,151,68],[151,69,151,70],[152,67,152,68],[152,69,152,70],[152,72,152,75],[158,74,158,77],[153,45,153,46],[154,45,154,46],[186,81,259,83],[155,45,155,46],[156,45,156,46],[157,45,157,46],[158,45,158,46],[159,43,160,46],[154,69,155,70],[156,69,156,70],[252,12,259,78],[202,14,202,63],[250,12,251,59],[184,13,185,26],[235,37,235,65],[235,67,235,76],[204,53,204,63],[204,65,204,76],[237,14,237,35],[218,14,218,63],[218,65,218,76],[166,65,166,77],[1,81,99,83],[100,81,185,83],[65,65,65,77],[28,56,30,79],[1,55,3,60],[15,56,19,61],[12,56,13,61],[15,62,19,67],[25,73,27,79],[4,11,4,79],[12,62,13,67],[12,69,13,72],[12,73,13,79],[15,69,19,72],[15,73,19,79],[25,63,27,66],[25,70,27,72],[152,43,152,44],[153,43,153,44],[156,71,156,72],[157,69,157,70],[157,71,157,72],[158,69,158,70],[158,71,158,72]]}
[]
[null,null,null,null,null,null,null,null,null,null,null,"Jurisdiction Name:",null,null,null,null,null,null,null,null,null,null,null,null,null,null,null,null,null,null,null,null,null,null,null,null,null,null,null,null,null,null,null,null,null,null,null,null,null,null,null,null,null,null,null,"Contract #",null,null,null,null,null,null,null,null,null,null,null,null,null,null,null,null,null,null,null,null,null,null,null,null,null,"Page 1"]
[]
[]
[null,null,null,null,null,null,null,null,null,null,null,"STATE OF CALIFORNIA - CDBG PROGRAM\nCDBG Program"]
[null,null,null,null,null,null,null,null,null,null,null,"Project Setup & Completion Report"]
[]
[null,null,null,null,null,null,null,null,null,null,null,"CLEARANCE - REMEDIATION & CLEANUP",null,null,null,null,null,null,null,null,null,null,null,null,null,null,null,null,null,null,null,null,null,null,null,null,null,null,null,null,null,null,null,null,null,null,null,null,null,null,null,null,null,null,null,null,"FOR CDBG USE ONLY"]
[]
[null,null,null,null,null,null,null,null,null,null,null,null,null,null,null,null,null,null,null,null,null,null,null,null,null,null,null,null,null,null,null,null,null,null,null,null,null,null,null,null,null,null,null,null,null,null,null,null,null,null,null,null,null,null,null,null,"Project Completion Report"]
[]
[]
[null,null,null,null,null,null,null,null,null,null,null,null,null,null,null,null,null,null,null,null,null,null,null,null,null,null,null,null,null,null,null,null,null,null,null,null,null,null,null,null,null,null,null,null,null,null,null,null,null,null,null,null,null,null,null,null,"Mgr Initials:",null,null,null,null,null,null,null,null,null,null,null,null,"Date"]
[]
[]
[null,null,null,null,null,null,null,null,null,null,null,"Complete this form as a Setup Report, a Completion Report or a Setup and Completion Report and submit electonically to your CDBG Program Representative.",null,null,null,null,null,null,null,null,null,null,null,null,null,null,null,null,null,null,null,null,null,null,null,null,null,null,null,null,null,null,null,null,null,null,null,null,null,null,null,null,null,null,null,null,"Rep Initials:",null,null,null,null,null,null,null,null,null,null,null,null,"Date"]
[]
[]
[]
[]
[]
[null,null,null,null,null,null,null,null,null,null,null,"Department of Housing and Community Development - CDBG Program \nP.O. Box 952054\nSacramento CA, 94252-2054"]
[]
[]
[]
[null,null,null,null,null,null,null,null,null,null,null,null,null,null,null,null,null,null,null,null,null,null,null,null,null,null,null,null,null,null,null,null,null,null,null,null,null,null,null,null,null,null,null,null,null,null,null,null,null,null,null,null,null,null,null,null,"Fiscal Initials",null,null,null,null,null,null," ",null,null,null,null,null,null,"Date:"]
[]
[]
[null,null,null,null,null,null,null,null,null,null,null,null,null,null,null,null,null,null,null,null,null,null,null,null,null,null,null,null,null,null,null,null,null,null,null,null,null,null,null,null,null,null,null,null,null,null,null,null,null,null,null,null,null,null,null,null,"Program Income"]
[]
[]
[null,null,null,null,null,null,null,null,null,null,null,"PI Only Funding",null,null,null,null,null,null,null,null,null,null,null,null,null,null,"All CDBG funds used in this project",null,null,null,null,null,null,null,null,null,null,null,null,null,null,null,null,null,null,null,null,null,null,null,null,null,null,null,null,null,"PI Receipt #"]
[null,null,null,null,null,null,null,null,null,null,null,"Select Option",null,null,null,null,null,null,null,null,null,null,null,null,null,null,null,null,null,null,null,null,null,null,null,null,null,null,null,null,null,null,null,null,null,null,null,null,null,null,null,null,null,null,null,null,"PI Voucher #"]
[]
[null,null,null,null,null,null,null,null,null,null,null,"Setup",null,null,null,null,null,null,null,null,null,{"$f":"IF(L36=\"revised\",\"If Revised, Why?\",\"\")","v":""},null,null,null,null,null,null,null,null,null,null,null,null,null,null,null,null,null,null,null,null,null,null,null,null,null,null,null,null,null,null,null,null,null,null,"CDBG-Assigned Numbers"]
[null,null,null,null,null,null,null,null,null,null,null,"Select Option",null,null,null,null,null,null,null,null,null,null,null,null,null,null,null,null,null,null,null,null,null,null,null,null,null,null,null,null,null,null,null,null,null,null,null,null,null,null,null,null,null,null,null,null,"CDBG Project Number",null,null,null,null,null,null,null,null,null,null,null,"IDIS Activity Number"]
[null,null,null,null,null,null,null,null,null,null,null,"Date"]
[null,null,null,null,null,null,null,null,null,null,null,null,null,null,null,null,null,null,null,null,null,""]
[null,null,null,null,null,null,null,null,null,null,null,"Completion",null,null,null,null,null,null,null,null,null,{"$f":"IF(L40=\"Cancelled\",\"If Cancelled, Why?\",IF(L40=\"revised\",\"If Revised, Why?\",\"\"))","v":""}]
[null,null,null,null,null,null,null,null,null,null,null,"Select Option",null,null,null,null,null,null,null,null,null,null,null,null,null,null,null,null,null,null,null,null,null,null,null,null,null,null,null,null,null,null,null,null,null,null,null,null,null,null,null,null,null,null,null,null,"Proposed completion MM/YY"]
[null,null,null,null,null,null,null,null,null,null,null,"Date",null,null,null,null,null,null,null,null,null,null,null,null,null,null,null,null,null,null,null,null,null,null,null,null,null,null,null,null,null,null,null,null,null,null,null,null,null,null,null,null,null,null,null,null,"Proposed # of Units"]
[]
[null,null,null,null,null,null,null,null,null,null,null,"Part A ",null,null,null,null,null,null,"JURISDICTION INFORMATION & PREPARER",null,null,null,null,null,null,null,null,null,null,null,null,null,null,null,null,null,null,null,null,null,null,null,null,null,null,null,null,null,null,null,null,null,null,null,"REQUIRED"]
[]
[]
[]
[null,null,null,null,null," ",null,null,null,null,null,null,null,"Jurisdiction Contact Information",null,null,null,null,null,null,null,null,null,null,null,null,null,null,null,null,null,null,null,null,null,null,null,null,null,null,null,null,null,null,null,null,null,"Preparer",null,null,null,null,null,"Select Option"]
[]
[null,null,null,null,null,null,null,null,null,null,null,null,null,"1a. Name (Contact Person)",null,null,null,null,null,null,null,null,null,null,null,null,null,null,null,null,null,null,null,null,null,null,null,null,null,null,null,null,null,null,null,null,null,"2a. Preparer's Name"]
[]
[]
[null,null,null,null,null,null,null,null,null,null,null,null,null,"1b. E-Mail",null,null,null,null,null,null,null,null,null,null,null,null,null,null,null,null,null,null,null,null,null,null,null,null,null,null,null,null,null,null,null,null,null,"2b. Organization (if not grantee)"]
[]
[]
[null,null,null,null,null,null,null,null,null,null,null,null,null,"1c. Phone/Direct Line",null,null,null,null,null,null,null,null,null,null,null,null,null,null,null,null,null,null,null,null,null,null,null,null,null,null,null,null,null,null,null,null,null,"2c. E-Mail",null,null,null,null,null,null,null,null,null,null,null,null,null,null,null,null,null,"2d. Phone/Direct Line"]
[]
[]
[]
[null,null,null,null,null,null,null,null,null,null,null,null,null,"Subrecipient Information (Only)",null,null,null,null,null,null,null,null,null,null,null,null,null,null,null,null,null,null,null,null,null,null,null,null,null,null,null,null,null,null,null,null,null,null,null,null,null,null,null,null,"REQUIRED if applicable"]
[]
[]
[null,null,null,null,null,null,null,null,null,null,null,null,null,"3a. Organization name",null,null,null,null,null,null,null,null,null,null,null,null,null,null,null,null,null,null,null,null,null,null,null,null,null,null,null,null,null,null,null,null,null,"3b. Complete address"]
[]
[]
[]
[null,null,null,null,null,null,null,null,null,null,null,null,null,"3c. Organization is categorized as:",null,null,null,null,null,null,null,null,null,null,null,null,null,null,null,null,null,null,null,null,null,null,"3d. DUNS number",null,null,null,null,null,null,null,null,null,null,"3e. E-Mail",null,null,null,null,null,null,null,null,null,null,null,null,null,null,null,null,null,"3f. Phone/Direct Line"]
[null,null,null,null,null,null,null,null,null,null,null,null,"Select Option"]
[]
[null,null,null,null,null,null,null,null,null,null,null,null,null,"3g. ",null,"Check all that applies to this organization"]
[]
[]
[]
[]
[null,null,null,null,null,null,null,null,null,null,null,"Part B ",null,null,null,null,null,null,"PROJECT & ACTIVITY INFORMATION",null,null,null,null,null,null,null,null,null,null,null,null,null,null,null,null,null,null,null,null,null,null,null,null,null,null,null,null,null,null,null,null,null,null,null,"REQUIRED"]
[]
[]
[]
[null,null,null,null,null,null,null,null,null,null,null,null,null,"1a. Name of Project"]
[]
[null,null,null,null,null,null,null,null,null,null,null,null,null,"1b. Project  Address",null,null,null,null,null,null,null,null,null,null,null,null,null,null,null,null,null,null,null,null,null,null,null,null,"1c. City",null,null,null,null,null,null,null,null,null,null,null,null,null,"1d. Zip Code",null,null,null,null,null,null,null,null,"CDBG Project Amount (Incl AD)"]
[null,null,null,null,null,null,null,null,null,null,null,null,null,null,null,null,null,null,null,null,null,null,null,null,null,null,null,null,null,null,null,null,null,null,null,null,null,null,null,null,null,null,null,null,null,null,null,null,null,null,null,null,null,null,null,null,null,null,null,null,null,null,null,null,null,{"$f":"SUM(BN205,BN221)","v":0}]
[]
[]
[null,null,null,null,null,null,null,null,null,null,null,null,null,"2. National Objective",null,null,null,null,null,null,null,null,null,null,null,null,null,null,null,null,null,null,null,null,null,null,"3. Activity & Matrix Code",null,null,null,null,null,null,null,null,null,null,null,null,null,null,null,null,null,null,null,null,null,null,null,null,"4. Accomplishment Type"]
[null,null,null,null,null,null,null,null,null,null,null,null,null,"Select Option",null,null,null,null,null,null,null,null,null,null,null,null,null,null,null,null,null,null,null,null,null,null,"Select Option",null,null,null,null,null,null,null,null,null,null,null,null,null,null,null,null,null,null,null,null,null,null,null,null,"Select Option"]
[]
[null,null,null,null,null,null,null,null,null,null,null,null,null,"5. Activity Description / Accomplishment Narrative:"]
[]
[]
[]
[null,null,null,null,null,null,null,null,null,null,null," Part C ",null,null,null,null,null,null,"Replacement / Displacement",null,null,null,null,null,null,null,null,null,null,null,null,null,null,null,null,null,null,null,null,null,null,null,null,null,null,null,null,null,null,null,null,null,null,"REQUIRED"]
[]
[]
[]
[null,null,null,null,null,null,null,null,null,null,null,null,null,"1. Activity Information (check all that apply)"]
[]
[]
[]
[]
[]
[null,null,null,null,null,null,null,null,null,null,null,null,null,null,null,null,null,null,null,null,null,null,null,null,null,null,null,null,null,null,null,null,null,null,null,null,null,null,null,null,null,null,null,null,null,null,null,null,null,null,null,null,null,null,null,null,null,null,null,null,null,null,null,null,null,null,null,null,null,null,null,null,null,null,null,null,null,null,null,null,null,"Page 2"]
[]
[null,null,null,null,null,null,null,null,null,null,null,"Part D",null,null,null,null,null,null,"PRESUMED BENEFIT ",null,null,null,null,null,null,null,null,null,null,null,null,null,null,null,null,null,null,null,null,null,null,null,null,null,null,null,null,null,null,null,null,null,null,{"$f":"IF(N85=Validation!D10,\"REQUIRED\",\"NOTREQUIRED\")","v":"NOTREQUIRED"}]
[]
[]
[]
[null,null,null,null,null,null,null,null,null,null,null,null,null,"Presumed Benefit?"]
[]
[]
[]
[null,null,null,null,null,null,null,null,null,null,null,null,null,"Check Group",null,null,null,null,null,null,null,null,null,null,null,null,null,null,null,null,null,"Income Level"]
[]
[]
[null,null,null,null,null,null,null,null,null,null,null,null,null,"Select Option",null,null,null,null,null,null,null,null,null,null,null,null,null,null,null,null,null,{"$f":"IF(N114=Validation!C83,Validation!D83,IF('Clearance Remediation Cleanup'!N114=Validation!C84,Validation!D84,IF('Clearance Remediation Cleanup'!N114=Validation!C85,Validation!D85,IF('Clearance Remediation Cleanup'!N114=Validation!C86,Validation!D86,IF('Clearance Remediation Cleanup'!N114=Validation!C87,Validation!D87,IF('Clearance Remediation Cleanup'!N114=Validation!C88,Validation!D88,IF('Clearance Remediation Cleanup'!N114=Validation!C89,Validation!D89,IF('Clearance Remediation Cleanup'!N114=Validation!C90,Validation!D90,\"\"))))))))","v":""}]
[]
[]
[]
[]
[]
[]
[]
[]
[]
[null,null,null,null,null,null,null,null,null,null,null,"Part C ",null,null,null,null,null,null,"ACCOMPLISHMENTS",null,null,null,null,null,null,null,null,null,null,null,null,null,null,null,null,null,null,null,null,null,null,null,null,null,null,null,null,null,null,null,null,null,null,null,{"$f":"IF(N85=Validation!D9,\"REQUIRED\",\"NOT REQUIRED\")","v":"NOT REQUIRED"}]
[]
[null,null,null,null,null,null,null,null,null,null,null,null,null,"Proposed Units",null,null,null,null,null,null,null,null,{"$f":"IF(BU41>0,BU41,\"\")","v":""},null,null,null,null,null,null,"Actual Units"]
[]
[]
[null,null,null,null,null,null,null,null,null,null,null," Part E",null,null,null,null,null,null,"MULTI-UNIT HOUSING",null,null,null,null,null,null,null,null,null,null,null,null,null,null,null,null,null,null,null,null,null,null,null,null,null,null,null,null,null,null,null,null,null,null,{"$f":"IF(N85=Validation!D11,\"REQUIRED\",\"NOT REQUIRED\")","v":"NOT REQUIRED"}]
[]
[]
[]
[null,null,null,null,null,null,null,null,null,null,null,null,null,"Multi-Unit Housing:",null,null,null,null,null,null,null,null,null,null,null,null,null,null,null,null,null,null,null,null,null,null,null,null,null,null,null,null,null,"Includes Rental Housing:"]
[]
[null,null,null,null,null,null,null,null,null,null,null,null,null,"Multi-Unit Housing",null,null,null,null,null,null,null,null,null,null,null,null,null,null,null,"Total",null,null,null,null,null,null,null,"Occupied",null,null,null,null,null,null,null,null,null,"Occupied Low/Mod",null,null,null,null,null,null,null,null,null,null,null,null,null,null,null,null,false]
[]
[]
[null,null,null,null,null,null,null,null,null,null,null,null,null,"Units at Start"]
[]
[]
[null,null,null,null,null,null,null,null,null,null,null,null,null,"Units Expected at Completion"]
[]
[]
[]
[]
[null,null,null,null,null,null,null,null,null,null,null,"Part C ",null,null,null,null,null,null,"DEMOGRAPHIC INFORMATION",null,null,null,null,null,null,null,null,null,null,null,null,null,null,null,null,null,null,null,null,null,null,null,null,null,null,null,null,null,null,null,null,null,null,null,{"$f":"IF(N85=Validation!D11,\"REQUIRED\",IF(N85=Validation!D10,\"REQUIRED\",\"NOT REQUIRED\"))","v":"NOT REQUIRED"}]
[]
[null,null,null,null,null,null,null,null,null,null,null,null,null,null,null,null,null,null,null,null,null,null,null,null,null,null,null,null,null,null,null,null,null,"Total",null,null,null,null,null,null,null,null,null,"Owner",null,"Renter",null,null,"INCOME LEVELS",null,null,null,null,null,null,null,null,null,null,null,null,null,"Total",null,null,null,null,"Owner",null,"Renter"]
[null,null,null,null,null,null,null,null,null,null,null,null,null,"Race / Ethnicity",null,null,null,null,null,null,null,null,null,null,null,null,null,null,null,null,null,null,null,"Total",null,null,null,"Hispanic/ Latino"]
[null,null,null,null,null,null,null,null,null,null,null,null,null,"White (11)",null,null,null,null,null,null,null,null,null,null,null,null,null,null,null,null,null,null,null,null,null,null,null,null,null,null,null,null,null,null,null,null,null,null,"Extremely Low (<30%)"]
[null,null,null,null,null,null,null,null,null,null,null,null,null,"Black/African American (12)",null,null,null,null,null,null,null,null,null,null,null,null,null,null,null,null,null,null,null,null,null,null,null,null,null,null,null,null,null,null,null,null,null,null,"Low (31-50%)"]
[null,null,null,null,null,null,null,null,null,null,null,null,null,"Asian (13)",null,null,null,null,null,null,null,null,null,null,null,null,null,null,null,null,null,null,null,null,null,null,null,null,null,null,null,null,null,null,null,null,null,null,"Moderate (51-80%)"]
[null,null,null,null,null,null,null,null,null,null,null,null,null,"American Indian / Alaskan Native (14)",null,null,null,null,null,null,null,null,null,null,null,null,null,null,null,null,null,null,null,null,null,null,null,null,null,null,null,null,null,null,null,null,null,null,"Non-Low/ Moderate (+80%)",null,null,null,null,null,null,null,null,null,null,null,null,null,null,null,null,null,null,null,null,null,null,null,{"$f":"SUM(BP150:BS153)","v":0}]
[null,null,null,null,null,null,null,null,null,null,null,null,null,"Native Hawaiian / Other Pacific Isl. (15)"]
[null,null,null,null,null,null,null,null,null,null,null,null,null,"Am. Indian / Alaskan Native & White (16)",null,null,null,null,null,null,null,null,null,null,null,null,null,null,null,null,null,null,null,null,null,null,null,null,null,null,null,null,null,null,null,null,null,null,null,null,null,null,null,null,null,null,null,null,null,null,null,null,null,null,"Total",null,null,null,null,"Owner",null,"Renter"]
[null,null,null,null,null,null,null,null,null,null,null,null,null,"Asian & White (17)"]
[null,null,null,null,null,null,null,null,null,null,null,null,null,"Black/African Am. & White (18)",null,null,null,null,null,null,null,null,null,null,null,null,null,null,null,null,null,null,null,null,null,null,null,null,null,null,null,null,null,null,null,null,null,null,"Veteran"]
[null,null,null,null,null,null,null,null,null,null,null,null,null,"Am. Indian/Alaskan & Blk/African (19)",null,null,null,null,null,null,null,null,null,null,null,null,null,null,null,null,null,null,null,null,null,null,null,null,null,null,null,null,null,null,null,null,null,null,"Participants Disable"]
[null,null,null,null,null,null,null,null,null,null,null,null,null,"Other Multi-Racial (20)",null,null,null,null,null,null,null,null,null,null,null,null,null,null,null,null,null,null,null,null,null,null,null,null,null,null,null,null,null,null,null,null,null,null,"Female-Headed Households",null,null,null,null,null,null,null,null,null,null,null,null,null,null,null,null,null,null,null,null,null,null,null,null,null,{"$f":"SUM(BR157:BU159)","v":0}]
[null,null,null,null,null,null,null,null,null,null,null,null,null,null,null,null,null,null,null,null,null,null,null,null,null,null,null,null,null,null,null,null,null,null,null,null,null,null,null,null,null,null,null,{"$f":"SUM(AR150:AU159)","v":0}]
[]
[]
[null,null,null,null,null,null,null,null,null,null,null," Part D ",null,null,null,null,null,null,"AREA BENEFIT DATA",null,null,null,null,null,null,null,null,null,null,null,null,null,null,null,null,null,null,null,null,null,null,null,null,null,null,null,null,null,null,null,null,null,null,{"$f":"IF(N85=Validation!D9,\"REQUIRED\",\"NOT REQUIRED\")","v":"NOT REQUIRED"}]
[]
[]
[]
[null,null,null,null,null,null,null,null,null,null,null,null,null,"Benefit data determined by",null,null,null,null,null,null,null,null,null,null,null,null,null,null,null,null,null,null,null,null,null,null,null,null,null,null,null,null,null,null,null,null,null,"Date",null,null,null,null,null,null,null,null,null,"County Code",null,null,null,null,null,null,null,"Select Option"]
[]
[null,null,null,null,null,null,null,null,null,null,null,null,null,null,null,null,null,null,null,null,null,null,null,null,null,null,null,null,null,"Block Groups"]
[]
[null,null,null,null,null,null,null,null,null,null,null,null,null,"Census Tract"]
[]
[null,null,null,null,null,null,null,null,null,null,null,null,null,"Census Tract"]
[]
[null,null,null,null,null,null,null,null,null,null,null,null,null,"Census Tract"]
[]
[null,null,null,null,null,null,null,null,null,null,null,null,null,"Census Tract"]
[]
[null,null,null,null,null,null,null,null,null,null,null,null,null,"Census Tract"]
[]
[null,null,null,null,null,null,null,null,null,null,null,null,null,"Census Tract"]
[]
[null,null,null,null,null,null,null,null,null,null,null,null,null,"Census Tract"]
[]
[null,null,null,null,null,null,null,null,null,null,null,null,null,"Total # Low/Mod",null,null,null,null,null,null,null,null,null,null,null,null,null,null,null,null,null,null,null,null,null,null,null,null,null,"Total Low/Mod Universe Population"]
[]
[null,null,null,null,null,null,null,null,null,null,null,null,null,null,null,null,null,null,null,null,null,null,null,null,null,null,null,null,null,null,null,null,null,null,null,null,null,null,null,null,null,null,null,null,null,null,null,null,null,null,null,null,null,null,null,null,null,null,null,null,null,null,null,null,null,null,null,null,null,null,null,null,null,null,null,null,null,null,null,null,null,"Page 3"]
[null,null,null,null,null,null,null,null,null,null,null,"Part E",null,null,null,null,null,null,"PROJECT FUNDING SOURCE DETAIL",null,null,null,null,null,null,null,null,null,null,null,null,null,null,null,null,null,null,null,null,null,null,null,null,null,null,null,null,null,null,null,null,null,null,null,null,"REQUIRED"]
[]
[]
[]
[null,null,null,null,null,null,null,null,null,null,null,null,null,"1. CDBG Grant",null,null,null,null,null,null,null,null,null,null,null,null,null,null,null,null,null,null,null,null,null,null,null,null,null,null,null,null,null,null,null,null,null,null,null,null,null,null,null,null,null,null,{"$f":"AK85","v":"Select Option"}]
[]
[]
[]
[null,null,null,null,null,null,null,null,null,null,null,null,null,null,"Funding Type (CDBG Funds)",null,null,null,null,null,null,null,null,null,null,null,null,null,null,null,null,null,null,null,null,null,null,null,null,null,null,null,null,null,null,null,null,null,null,null,null,null,null,null,null,null,null,null,null,null,null,null,null,null,null,"Amount (CBDG Funds)"]
[]
[]
[]
[]
[null,null,null,null,null,null,null,null,null,null,null,null,null,null,"CDBG - Grant"]
[]
[null,null,null,null,null,null,null,null,null,null,null,null,null,null,"Activity Delivery"]
[]
[null,null,null,null,null,null,null,null,null,null,null,null,null,null,null,null,null,null,null,null,null,null,null,null,null,null,null,null,null,null,null,null,null,null,null,null,null,null,null,null,null,null,null,null,null,null,null,null,null,null,null,null,null,"TOTAL",null,null,null,null,null,null,null,null,null,null,null,{"$f":"SUMIF($BN$201:$BY$203,\">0\")","v":0}]
[]
[]
[null,null,null,null,null,null,null,null,null,null,null,null,null,"2. CDBG Program Income"]
[]
[]
[]
[null,null,null,null,null,null,null,null,null,null,null,null,null,null,"Program Income (PI) Type",null,null,null,null,null,null,null,null,null,null,null,null,null,null,null,null,null,null,null,null,null,null,null,null,null,null,null,null,null,null,null,null,null,null,null,null,null,null,null,null,null,null,null,null,null,null,null,null,null,null,"Amount PI Funds"]
[]
[]
[]
[]
[null,null,null,null,null,null,null,null,null,null,null,null,null,null,"CDBG - PI Grant"]
[]
[null,null,null,null,null,null,null,null,null,null,null,null,null,null,"Activity Delivery"]
[]
[null,null,null,null,null,null,null,null,null,null,null,null,null,null,null,null,null,null,null,null,null,null,null,null,null,null,null,null,null,null,null,null,null,null,null,null,null,null,null,null,null,null,null,null,null,null,null,null,null,null,null,null,null,"TOTAL",null,null,null,null,null,null,null,null,null,null,null,{"$f":"SUMIF($BN$217:$BY$219,\">0\")","v":0}]
[]
[]
[null,null,null,null,null,null,null,null,null,null,null,null,null,"3. Leverage and Other Funding Sources"]
[]
[]
[]
[null,null,null,null,null,null,null,null,null,null,null,null,null,null,"Funding Source ",null,null,null,null,null,null,null,null,null,null,null,null,null,null,null,null,null,null,null,null,null,null,"Name of Source",null,null,null,null,null,null,null,null,null,null,null,null,null,null,null,null,null,null,null,null,null,null,null,null,null,null,null,null,null,"Amount"]
[]
[null,null,null,null,null,null,null,null,null,null,null,null,null,null,"Select Option"]
[]
[]
[]
[]
[]
[]
[]
[]
[]
[]
[]
[]
[]
[null,null,null,null,null,null,null,null,null,null,null,null,null,null,null,null,null,null,null,null,null,null,null,null,null,null,null,null,null,null,null,null,null,null,null,null,null,null,null,null,null,null,null,null,null,null,null,null,null,null,null,null,null,null,null,"TOTAL",null,null,null,null,null,null,null,null,null,null,null,{"$f":"SUM(BP230:BY242)","v":0}]
[]
[]
[null,null,null,null,null,null,null,null,null,null,null,null,null,null,null,null,null,null,null,null,null,null,null,null,null,null,null,null,null,null,null,null,null,null,null,null,null,null,null,null,null,null,null,null,null,null,null,null,null,null,null,null,"TOTAL PROJECT COST",null,null,null,null,null,null,null,null,null,null,null,null,null,null,{"$f":"SUM(BN221,BN205,BP244)","v":0}]
[]
[]
[]
[null,null,null,null,null,null,null,null,null,null,null,null,"Comments: explain any issues with this activity or clarification of information provided in this form."]
[]
[]
[]
[]
[]
[]
[]
[]
[]
[]
[]
[null,null,null,null,null,null,null,null,null,null,null,"END OF DOCUMENT"]

{"sheet":"Replacement-Displacement only","index":1,"n_rows":35,"n_cols":67,"rows_kept":35,"cut":false,"hidden":true,"merged":[[42,57,42,60],[43,14,43,34],[43,35,43,38],[43,39,43,42],[43,44,43,47],[43,48,43,51],[43,53,43,56],[43,57,43,60],[42,14,42,34],[42,35,42,38],[42,39,42,42],[42,44,42,47],[42,48,42,51],[42,53,42,56],[40,57,40,60],[41,14,41,34],[41,35,41,38],[41,39,41,42],[41,44,41,47],[41,48,41,51],[41,53,41,56],[41,57,41,60],[40,14,40,34],[40,35,40,38],[40,39,40,42],[40,44,40,47],[40,48,40,51],[40,53,40,56],[38,57,38,60],[39,14,39,34],[39,35,39,38],[39,39,39,42],[39,44,39,47],[39,48,39,51],[39,53,39,56],[39,57,39,60],[38,14,38,34],[38,35,38,38],[38,39,38,42],[38,44,38,47],[38,48,38,51],[38,53,38,56],[36,57,36,60],[37,14,37,34],[37,35,37,38],[37,39,37,42],[37,44,37,47],[37,48,37,51],[37,53,37,56],[37,57,37,60],[36,14,36,34],[36,35,36,38],[36,39,36,42],[36,44,36,47],[36,48,36,51],[36,53,36,56],[34,57,34,60],[35,14,35,34],[35,35,35,38],[35,39,35,42],[35,44,35,47],[35,48,35,51],[35,53,35,56],[35,57,35,60],[34,14,34,34],[34,35,34,38],[34,39,34,42],[34,44,34,47],[34,48,34,51],[34,53,34,56],[32,14,32,33],[32,35,32,42],[32,44,32,51],[32,53,32,60],[33,35,33,38],[33,39,33,42],[33,44,33,47],[33,48,33,51],[33,53,33,56],[33,57,33,60],[27,14,27,21],[30,14,30,28],[30,32,30,38],[30,39,30,57],[30,59,30,65],[30,66,30,72],[24,14,24,65],[24,68,24,72],[25,14,25,65],[25,68,25,72],[26,14,26,65],[26,68,26,72],[20,14,20,50],[20,66,20,74],[22,14,22,65],[22,68,22,72],[23,14,23,65],[23,68,23,72],[15,14,15,35],[15,37,15,82],[17,14,17,35],[17,37,17,47],[17,49,17,71],[17,72,17,82],[8,14,8,28],[8,31,8,44],[10,14,10,35],[10,37,10,82],[12,14,12,35],[12,37,12,47],[12,49,12,71],[12,72,12,82],[1,14,3,25],[1,26,3,55],[1,58,3,63],[1,64,3,82],[4,14,4,82],[5,14,5,82]]}
[]
[null,null,null,null,null,null,null,null,null,null,null,null,null,null,"Jurisdiction Name:",null,null,null,null,null,null,null,null,null,null,null,{"$f":"IF('[2]Multi - Family SET UP'!X2>0,'[2]Multi - Family SET UP'!X2,\"\")","v":""},null,null,null,null,null,null,null,null,null,null,null,null,null,null,null,null,null,null,null,null,null,null,null,null,null,null,null,null,null,null,null,"Contract #",null,null,null,null,null,{"$f":"IF('[2]Multi - Family SET UP'!BJ2>0,'[2]Multi - Family SET UP'!BJ2,\"\")","v":""}]
[]
[]
[null,null,null,null,null,null,null,null,null,null,null,null,null,null,"STATE OF CALIFORNIA - CDBG PROGRAM\nCDBG Program"]
[null,null,null,null,null,null,null,null,null,null,null,null,null,null,"Project Setup/Completion Report"]
[]
[]
[null,null,null,null,null,null,null,null,null,null,null,null,null,null,"One-for-one Replacement",null,null,null,null,null,null,null,null,null,null,null,null,null,null,null,null,"Includes Rental Housing:"]
[null,null,null,null,null,null,null,null,null,null,null,null,null,null,""]
[null,null,null,null,null,null,null,null,null,null,null,null,null,null,"Demolished/Converted Property Address:"]
[]
[null,null,null,null,null,null,null,null,null,null,null,null,null,null,"Indicate the number of bedroom units:",null,null,null,null,null,null,null,null,null,null,null,null,null,null,null,null,null,null,null,null,null,null,"Select Option",null,null,null,null,null,null,null,null,null,null,null,"Grant or Loan Agreement Executed Date:"]
[]
[]
[null,null,null,null,null,null,null,null,null,null,null,null,null,null,"Replacement Address:"]
[]
[null,null,null,null,null,null,null,null,null,null,null,null,null,null,"Indicate the number of bedroom units:",null,null,null,null,null,null,null,null,null,null,null,null,null,null,null,null,null,null,null,null,null,null,"Select Option",null,null,null,null,null,null,null,null,null,null,null,"Date Unit Will be Available:"]
[]
[]
[null,null,null,null,null,null,null,null,null,null,null,null,null,null,"Answer the questions below, if yes to \"Include Rental Housing\" above.",null,null,null,null,null,null,null,null,null,null,null,null,null,null,null,null,null,null,null,null,null,null,null,null,null,null,null,null,null,null,null,null,null,null,null,null,null,null,null,null,null,null,null,null,null,null,null,null,null,null,null,"Number of Units"]
[]
[null,null,null,null,null,null,null,null,null,null,null,null,null,null,"Units Subsidized with Project-Based Rental Assistance by Another Federal, State or Local Program."]
[null,null,null,null,null,null,null,null,null,null,null,null,null,null,"Units Designated for Persons with HIV/AIDS Including Units Receiving Assistance for Operations."]
[null,null,null,null,null,null,null,null,null,null,null,null,null,null,"Of Units Designated for Persons with HIV/AIDS, Number Specifically for Chronically Homeless."]
[null,null,null,null,null,null,null,null,null,null,null,null,null,null,"Permanent Housing Units Designated for Homeless Persons and Families, Including Units Receiving Assistance for Operations"]
[null,null,null,null,null,null,null,null,null,null,null,null,null,null,"Of Permanent Housing Units Designated for Homeless, Number for the Chronically Homeless,"]
[]
[]
[]
[null,null,null,null,null,null,null,null,null,null,null,null,null,null,"Displacement",null,null,null,null,null,null,null,null,null,null,null,null,null,null,null,null,null,"City Name:",null,null,null,null,null,null,null,null,null,null,null,null,null,null,null,null,null,null,null,null,null,null,null,null,null,null,"Census Tract:"]
[]
[null,null,null,null,null,null,null,null,null,null,null,null,null,null,"Race",null,null,null,null,null,null,null,null,null,null,null,null,null,null,null,null,null,null,null,null,"Displaced",null,null,null,null,null,null,null,null,"Remained In",null,null,null,null,null,null,null,null,"Relocated To"]
[null,null,null,null,null,null,null,null,null,null,null,null,null,null,null,null,null,null,null,null,null,null,null,null,null,null,null,null,null,null,null,null,null,null,null,"Total",null,null,null,"Hisp",null,null,null,null,"Total",null,null,null,"Hisp",null,null,null,null,"Total",null,null,null,"Hisp"]
[null,null,null,null,null,null,null,null,null,null,null,null,null,null,"Select Option"]

{"sheet":"Validation","index":2,"n_rows":157,"n_cols":9,"rows_kept":157,"cut":false,"hidden":true,"merged":[[156,1,156,2],[14,7,15,7],[152,1,152,2],[153,1,153,2],[154,1,154,2],[155,1,155,2]]}
["Select Option","Select Option","Select Option","Yes","Non-Profit Organization",null,"Match Leverage"]
["Original","Yes","New","No","Faith-Based Organization",null,"Select Option",null,"Select Option"]
["Revised","No","Existing",null,"Institution of Higher Education","L000-Local Other","F000-Federal Other",null,"P300-Private Funds"]
["Cancelled","N/A","N/A",null,null,"L110-Staff Time","F100-Federal HUD",null,"P130-Private-Equity in Land/ Improve"]
[null,null,null,null,null,"L120-Local-in-Kind","F200-Federal SBA",null,"P320-Private Financing"]
["FY 14/15",null,null,null,null,"L130-Local Land","F300-Federal EDA",null,"P330-Private Loans"]
["FY 15/16",null,"Expanding","National Objective",null,"L200-Local Fees","F400-Federal USDA",null,"P340-Private Banks"]
["FY 16/17",null,null,"Select Option",null,"L210-Local Fee Waivers","F500-Federal FEMA",null,"F200-Federal SBA"]
["FY 17/18",null,null,"LMA - Low/Mod area benefit",null,"L220-Local Audit","F600-Federal Housing Tax Credits",null,"F400-Federal USDA"]
["FY 18/19","Select Option",null,"LMC - Low/Mod limited clientele benefit",null,"L300-Local","L000-Local Other",null,"P350-Private EDC"]
["FY 19/20","Expanding",null,"LMH - Low/Mod housing benefit",null,"L310-PTA Cash Match","L001-Local No Match Required",null,"F300-Federal EDA"]
["FY 20/21","Relocating",null,null,null,"L600-Local RDA","L110-Staff Time",null,"F000-Federal Other"]
["FY 21/22","N/A",null,null,null,"P000 Private Other","L120-Local-in-Kind",null,"F500-Federal FEMA"]
["FY 22/23",null,null,null,null,"P100-Private Equity","L130-Local Land Contribution",null,"S000-State Other"]
["FY 23/24",null,null,null,"14H Rehabilitation Administration","P110-Private Sweat Equity","L200-Local Fee Waiver","What's the difference?"]
["FY 24/25",null,null,null,null,"P120-Private-in-Kind","L210-Local Fee Waivers"]
[null,null,null,null,null,"P200-Private Fees","L220-Local Audit"]
[null,null,null,null,"Grant","P320-Private Financing","L300-Local Funds"]
["Select Option",null,null,null,"Loan","P900-Private Volunteer Time","L310-PTA Cash Match General"]
["0-1 bedroom unit",null,null,null,"Grant and Loan","F000-State Other","L311-PTA Cash Match ED"]
["2 bedroom unit",null,null,"Business Type",null,"S200-State Tax Credits","L320-PTA Private Financing"]
["3 bedroom unit",null,null,"Select Option","Select Option",null,"L330-Bonds",null,"County Code"]
["4 bedroom unit",null,null,"None ","11 - White",null,"L400-Goods and Services Incl.",null,"Select Option"]
["5+ bedroom unit",null,null,"New","12 - Black/African American ",null,"L500-Gas Tax",null,"001 Alameda"]
[null,null,null,"Existing","13 - Asian","-CDBG-","L600-Local RDA",null,"003 Alpine"]
[null,null,null,null,"14 - American Indian/ Alaskan Native ",null,"L601-Local RDA",null,"005 Amador"]
[null,null,null,null,"15 - Native Hawaiian/ Other Pacific Islander",null,"L602-Waived Interest/ Fin'e Chg",null,"007 Butte"]
[null,null,null,null,"16 - Am. Indian / Alaskan Native & White ",null,"P000 Private Other",null,"009 Calaveras"]
["Select Option",null,null,null,"17 - Asian & White ",null,"P100-Private Equity","Delete \"Equity\"?","011 Colusa"]
["Abused Children","Extremely Low Income",null,null,"18 - Black/African Am. & White",null,"P110-Private Sweat Equity",null,"013 Contra Costa"]
["Battered Spouses","Low Income",null,null,"19 - Am. Indian / Alaskan & Blk/African ",null,"P120-Private-in-Kind",null,"015 Del Norte"]
["Severely Disable Adults","Low Income",null,null,"20 - Other Multi-Racial ",null,"P130-Private-Equity in Land/ Improve",null,"017 El Dorado"]
["Homeless Persons","Extremely Low Income",null,null,null,null,"P200-Private Fees",null,"019 Fresno"]
["Persons With AIDS","Low Income",null,null,"Income Level","Accomplishment Type","P210-Private Fee Waivers",null,"021 Glenn"]
["Migrant Farm Workers","Low Income",null,null,"Select Option","Select Option","P220-Private Discounts",null,"023 Humboldt"]
["Illiterate Adults","Low Income",null,null,"Extremely Low ( ≤ 30%)","01 - People","P300-Private Funds",null,"025 Imperial"]
["Elderly","If assistance is to acquire, construct, convert, and/or rehabilitate a senior center or to pay for providing center-based senior services, report the beneficiaries as moderate income.\nIf assistance is for other services (not center-based), report the elderly beneficiaries as low income.",null,null,"Low (31-50%)","08 - Businesses","P310-Private Cash Match",null,"027 Inyo"]
[null,null,null,"Select Option","Moderate (51-80%)","10 - Housing Units","P320-Private Financing",null,"029 Kern"]
[null,null,null,"A 105 (a) (15) entity as defined under the HD Act","Non-Low/ Moderate (+80%)",null,"P330-Private Loans",null,"031 Kings"]
[null,null,null,"A 501 ( c ) 3",null,null,"P340-Private Banks",null,"033 Lake"]
[null,null,null,"Another unit of local government","Select Option",null,"P350-Private EDC",null,"035 Lassen"]
[null,null,null,"Another public agency","Housing constructed before 1978",null,"P400-Private Good and Services",null,"037 Los Angeles"]
[null,null,null,null,"*Exempt: Housing constructed in 1978/ later",null,"P500-Private Tax Credit Equity",null,"039 Madera"]
[null,null,null,null,"Exempt: No paint disturbed",null,"P600-Private Foundation/ Nonprofit G","G?","041 Marin"]
[null,null,null,null,"Otherwise exempt",null,"P900-Private Volunteer Time",null,"043 Mariposa"]
[null,"Select Option",null,null,null,null,"S000-State Other",null,"045 Mendocino"]
[null,"Officials and Managers",null,null,"Select Option",null,"S100-State HCD",null,"047 Merced"]
[null,"Professional",null,null,"Lead Safe Work Practices (24 CFR 35.930(b)) (Hard cost < or = to $5,000)",null,"S200-State Treasurer Tax Credits-MC",null,"049 Modoc"]
[null,"Technicians",null,null,"Interim Controls/ Standard Practices (24 CFR 35.930(c)) (Hard cost $5,000-$25,000)",null,"S300-State SWRCB",null,"051 Mono"]
[null,"Sales",null,null,"Abatement (24 CFR 35.930(d)) (Hard cost > $25,000)",null,"S400-State CalHFA (CHFA)",null,"053 Monterey"]
[null,"Office and Clerical",null,null,"N/A",null,"S500-State CSD",null,"055 Napa"]
[null,"Craft Workers (Skilled)",null,null,null,null,null,null,"057 Nevada"]
[null,"Operatives (Semi-Skilled)",null,null,"Yes",null,null,null,"059 Orange"]
[null,"Laborers (Unskilled)",null,null,"No",null,"Program Income",null,"061 Placer"]
[null,"Service Workers",null,null,null,null,null,null,"063 Plumas"]
[null,null,null,null,null,null,"PINC-Local Program Income",null,"065 Riverside"]
[null,"Select Option",null,null,null,null,null,null,"067 Sacramento"]
[null,"Created",null,"Select Option",null,"Occupancy","Loan/ Grant",null,"069 San Benito"]
[null,"Retained",null,"Subrecipient",null,"Select Option",null,null,"071 San Bernardino"]
[null,null,null,"Admin Contractor/Program Operator",null,"Owner","CDBG (Grant)",null,"073 San Diego"]
[null,null,null,"Jurisdiction Staff",null,"Tenant","CDBG (Loan)",null,"075 San Francisco"]
[null,"Select Option",null,null,null,null,null,null,"077 San Joaquin"]
[null,"Full Time",null,null,null,null,null,null,"079 San Luis Obispo"]
[null,"Part Time",null,"Program Income",null,"# of Bedrooms",null,null,"081 San Mateo"]
[null,null,null,"Revolving Loan Fund",null,"Select Option",null,null,"083 Santa Barbara"]
[null,null,null,null,null,1,null,null,"085 Santa Clara"]
[null,null,null,null,null,2,null,null,"087 Santa Cruz"]
[null,null,null,null,null,3,null,null,"089 Shasta"]
[null,null,null,"Loan Type",null,4,"General Admin.",null,"091 Sierra"]
[null,null,null,"Select Option",null,"5 or More",null,null,"093 Siskiyou"]
[null,null,null,"Amortized",null,null,"(21A) General Administration",null,"095 Solano"]
[null,null,null,"Deferred",null,null,null,null,"097 Sonoma"]
[null,null,null,"Amortized / Forgivable",null,"Yes/ No","Yes/ No","Yes","099 Stanislaus"]
[null,null,null,"Deferred / Forgivable",null,"Select Option",null,null,"101 Sutter"]
[null,null,null,null,null,"No","No","Yes","103 Tehama"]
[null,null,"Select Option",null,null,"Yes","Yes*",null,"105 Trinity"]
[null,null,"New",null,null,null,null,null,"107 Tulare"]
[null,null,"Improved",null,null,"# Persons","No",null,"109 Tuolumne"]
[null,null,"No Longer Substandard",null,null,"Select Option","Yes**",null,"111 Ventura"]
[null,null,null,null,null,1,null,null,"113 Yolo"]
[null,null,null,null,null,2,"Activity Delivery",null,"115 Yuba"]
[null,null,"Select Option",null,null,3]
[null,null,"Abused Children","Extremely Low Income",null,4,"Activity Delivery"]
[null,null,"Battered Spouses","Low Income",null,5]
[null,null,"Severely Disable Adults","Low Income",null,6,"Type of Household"]
[null,null,"Homeless Persons","Extremely Low Income",null,7,"Select Option"]
[null,null,"Persons With AIDS","Low Income",null,8,"Single/ Non-Elderly"]
[null,null,"Migrant Farm Workers","Low Income",null,"Vac","Elderly"]
[null,null,"Illiterate Adults","Low Income",null,null,"Related/ Single Parent"]
[null,null,"Elderly","If assistance is to acquire, construct, convert, and/or rehabilitate a senior center or to pay for providing center-based senior services, report the beneficiaries as moderate income.\nIf assistance is for other services (not center-based), report the elderly beneficiaries as low income.",null,null,"Other"]
[null,null,null,null,"(01) Acquisition of Real Property (for development) ",null,"Vacant"]
[null,null,null,null,"(03) Public Facilities & Improvements (General) ",null,"Related/Two Parent"]
[null,"County Code",null,"Activity Matrix Code","(03A) Senior Centers ",null,"Rental Assistance"]
[null,"Select Option",null,"Select Option","(03B) Handicapped Centers ",null,"Select Option"]
[null,"001 Alameda",null,"04 - Clearance and Demolition","(03C) Homeless Facilities (not operating costs) ",null,"HOME TBRA"]
[null,"003 Alpine",null,"04A - Cleanup of Contaminated Sites","(03D) Youth Centers ",null,"Sect. 8"]
[null,"005 Amador",null,null,"(03E) Neighborhood Facilities  ",null,"Other"]
[null,"007 Butte",null,null,"(03F) Parks/ Recreational Facilities ",null,"None"]
[null,"009 Calaveras",null,null,"(03G) Parking Facilities ",null,"Vacant"]
[null,"011 Colusa",null,null,"(03H) Solid Waste Disposal Improvements ",null,"Project Based"]
[null,"013 Contra Costa",null,null,"(03I) Flood/ Drainage Improvements "]
[null,"015 Del Norte",null,null,"(03J) Water/ Sewer Improvements "]
[null,"017 El Dorado",null,null,"(03K) Street Improvements "]
[null,"019 Fresno",null,null,"(03L) Sidewalks "]
[null,"021 Glenn",null,null,"(03M) Child Care Centers "]
[null,"023 Humboldt",null,null,"(03N) Tree Planting "]
[null,"025 Imperial",null,null,"(03O) Fire Station/ Equipment "]
[null,"027 Inyo",null,null,"(03P) Health Facilities "]
[null,"029 Kern",null,null,"(03Q) Abused and Neglected Children Facilities "]
[null,"031 Kings",null,null,"(03R) Asbestos Removal "]
[null,"033 Lake",null,null,"(03S) Facilities to AIDS Patients (not operating costs) "]
[null,"035 Lassen",null,null,"(03T) Operating Cost Homeless/ AIDS Patients "]
[null,"037 Los Angeles",null,null,"(04) Clearance, Demo, Remediation "]
[null,"039 Madera",null,null,"(04A) Cleanup of Contaminated Sites "]
[null,"041 Marin",null,null,"(05) Other Public Services "]
[null,"043 Mariposa",null,null,"(05A) Senior Services "]
[null,"045 Mendocino",null,null,"(05B) Handicapped Services "]
[null,"047 Merced",null,null,"(05C) Legal Services "]
[null,"049 Modoc",null,null,"(05D) Youth Services "]
[null,"051 Mono",null,null,"(05E) Transportation Services "]
[null,"053 Monterey",null,null,"(05F) Substance Abuse Services "]
[null,"055 Napa",null,null,"(05G) Battered and Abused Spouses "]
[null,"057 Nevada",null,null,"(05H) Employment Training "]
[null,"059 Orange",null,null,"(05I) Crime Awareness "]
[null,"061 Placer",null,null,"(05J) Fair Housing Activities "]
[null,"063 Plumas",null,null,"(05K) Tenant/ Landlord Counseling "]
[null,"065 Riverside",null,null,"(05L) Child Care Services "]
[null,"067 Sacramento",null,null,"(05M) Health Services "]
[null,"069 San Benito",null,null,"(05N) Abused/ Neglected Children "]
[null,"071 San Bernardino",null,null,"(05O) Mental Health Services "]
[null,"073 San Diego",null,null,"(05P) Screening for Lead-Based Paint/ Lead Hazards "]
[null,"075 San Francisco",null,null,"(05Q) Subsistence Payments "]
[null,"077 San Joaquin",null,null,"(05T) Security Deposits "]
[null,"079 San Luis Obispo",null,null,"(05U) Housing Counseling "]
[null,"081 San Mateo",null,null,"(05V) Neighborhood Cleanups "]
[null,"083 Santa Barbara",null,null,"(05W) Food Banks - Operating Costs "]
[null,"085 Santa Clara",null,null,"(13) Homeownership Direct Assistance "]
[null,"087 Santa Cruz",null,null,"(14A) Rehab; Single-Unit Residence "]
[null,"089 Shasta",null,null,"(14B) Rehab; Multi-Unit Residential "]
[null,"091 Sierra",null,null,"(14C) Public Housing Modernization "]
[null,"093 Siskiyou",null,null,"(14D) Rehab; Other than Public-Owned Residential Bids "]
[null,"095 Solano",null,null,"(14E) Rehab; Pub./Private-Owned Commercial/Industrial "]
[null,"097 Sonoma",null,null,"(14F) Energy Efficiency Improvements "]
[null,"099 Stanislaus",null,null,"(14G) Acquisition for Rehabilitation  "]
[null,"101 Sutter",null,null,"(14H) Rehabilitation Administration "]
[null,"103 Tehama",null,null,"(14I) Lead Base Paint/Hazards Test/Abatement "]
[null,"105 Trinity",null,null,"(15) Code Enforcement (Public Service) "]
[null,"107 Tulare",null,null,"(16A) Residential Historic Preservation "]
[null,"109 Tuolumne",null,null,"(16B) Non-Residential Historic Preservation "]
[null,"111 Ventura",null,null,"(17B) C/I infrastructure Development "]
[null,"113 Yolo",null,null,"(17C) C/I Building Acq., Construction, Rehabilitation  "]
[null,"115 Yuba",null,null,"(17D) Other Commercial/ Industrial Improvements "]
[null,null,null,null,"(18A) ED Direct Financial Assistance to For-Profits  "]
[null,null,null,null,"(18C) Micro Financial Assistance "]
[null,null,null,null,"(18C) Micro Technical Assistance "]
[null,null,null,null,"(20A-CD) Planning for CD "]
[null,null,null,null,"(20A-ED) Planning for ED "]